[Event "Late-Titled-Tuesday-Blitz-March-05-2024"]
[Site "Chess.com"]
[Date "2024.03.05"]
[Round "5"]
[White "Englishman_18"]
[Black "ccccvhhhj"]
[Result "0-1"]
[WhiteElo "2284"]
[BlackElo "2461"]
[TimeControl "180+1"]
[EndTime "14:55:20 PST"]
[Termination "ccccvhhhj won on time"]

1. Nf3 {[%clk 0:02:57.1]} 1... d5 {[%clk 0:02:57.8]} 2. g3 {[%clk 0:02:55.1]}
2... c6 {[%clk 0:02:57.8]} 3. Bg2 {[%clk 0:02:54.6]} 3... Bf5 {[%clk 0:02:55.2]}
4. O-O {[%clk 0:02:40]} 4... Nd7 {[%clk 0:02:55.4]} 5. c4 {[%clk 0:02:31.6]}
5... e5 {[%clk 0:02:54.5]} 6. cxd5 {[%clk 0:02:24.2]} 6... cxd5 {[%clk
0:02:55.4]} 7. d3 {[%clk 0:02:17.9]} 7... Ngf6 {[%clk 0:02:54.8]} 8. Nc3 {[%clk
0:02:17.5]} 8... Bd6 {[%clk 0:02:42.8]} 9. Qb3 {[%clk 0:02:15.7]} 9... Nb6
{[%clk 0:02:39.8]} 10. Bg5 {[%clk 0:02:11.4]} 10... Be6 {[%clk 0:02:38.3]} 11.
d4 {[%clk 0:02:10.3]} 11... e4 {[%clk 0:02:35.7]} 12. Ne5 {[%clk 0:01:32.3]}
12... O-O {[%clk 0:02:36]} 13. Qd1 {[%clk 0:01:18.6]} 13... h6 {[%clk
0:02:34.7]} 14. Be3 {[%clk 0:01:11.6]} 14... Bxe5 {[%clk 0:02:23.2]} 15. dxe5
{[%clk 0:01:11.5]} 15... Ng4 {[%clk 0:02:24.1]} 16. Bd4 {[%clk 0:01:11.6]} 16...
Nc4 {[%clk 0:02:22.2]} 17. Rb1 {[%clk 0:01:08.7]} 17... Qc7 {[%clk 0:01:57.1]}
18. b3 {[%clk 0:01:04.6]} 18... Ncxe5 {[%clk 0:01:54.9]} 19. h3 {[%clk
0:00:57.3]} 19... Nf6 {[%clk 0:01:53.4]} 20. Nb5 {[%clk 0:00:57.5]} 20... Qb8
{[%clk 0:01:53.9]} 21. Rc1 {[%clk 0:00:56]} 21... Rc8 {[%clk 0:01:26.4]} 22.
Rxc8+ {[%clk 0:00:50.4]} 22... Bxc8 {[%clk 0:01:25]} 23. Bc5 {[%clk 0:00:50.6]}
23... Bd7 {[%clk 0:01:01.9]} 24. Bd6 {[%clk 0:00:46.4]} 24... Qd8 {[%clk
0:00:44.2]} 25. Nc7 {[%clk 0:00:43.1]} 25... Nc6 {[%clk 0:00:42.6]} 26. Nxa8
{[%clk 0:00:41.4]} 26... Qxa8 {[%clk 0:00:43.5]} 27. Ba3 {[%clk 0:00:38.8]}
27... Be6 {[%clk 0:00:42.9]} 28. Bb2 {[%clk 0:00:30.8]} 28... Nd7 {[%clk
0:00:41.2]} 29. Qd2 {[%clk 0:00:28.2]} 29... Nde5 {[%clk 0:00:40.1]} 30. Rc1
{[%clk 0:00:25.5]} 30... Qd8 {[%clk 0:00:38.3]} 31. b4 {[%clk 0:00:23.4]} 31...
f6 {[%clk 0:00:36.4]} 32. b5 {[%clk 0:00:22.6]} 32... Ne7 {[%clk 0:00:37]} 33.
g4 {[%clk 0:00:19.2]} 33... Nc4 {[%clk 0:00:33.6]} 34. Qc2 {[%clk 0:00:18.3]}
34... Qb6 {[%clk 0:00:28.9]} 35. a4 {[%clk 0:00:16.9]} 35... Nxb2 {[%clk
0:00:20.4]} 36. Qxb2 {[%clk 0:00:17]} 36... Ng6 {[%clk 0:00:21.3]} 37. Qc2
{[%clk 0:00:16.1]} 37... Nf4 {[%clk 0:00:19]} 38. Bf1 {[%clk 0:00:15.2]} 38...
Bf7 {[%clk 0:00:13.8]} 39. Qc7 {[%clk 0:00:04.6]} 39... Qd4 {[%clk 0:00:12.8]}
40. Qxf4 {[%clk 0:00:03.6]} 40... Bg6 {[%clk 0:00:06.2]} 41. Rc8+ {[%clk
0:00:00.9]} 41... Kh7 {[%clk 0:00:06.4]} 0-1

[Event "Late-Titled-Tuesday-Blitz-March-05-2024"]
[Site "Chess.com"]
[Date "2024.03.05"]
[Round "5"]
[White "Fh2411"]
[Black "Slovineanu"]
[Result "1-0"]
[WhiteElo "2646"]
[BlackElo "2483"]
[TimeControl "180+1"]
[EndTime "14:55:22 PST"]
[Termination "Fh2411 won by resignation"]

1. d4 {[%clk 0:02:54.8]} 1... Nf6 {[%clk 0:02:54.5]} 2. Nf3 {[%clk 0:02:55]}
2... d5 {[%clk 0:02:52.7]} 3. Bf4 {[%clk 0:02:54.7]} 3... e6 {[%clk 0:02:50.1]}
4. e3 {[%clk 0:02:55]} 4... c5 {[%clk 0:02:50.5]} 5. c3 {[%clk 0:02:54.4]} 5...
Bd6 {[%clk 0:02:51]} 6. Bb5+ {[%clk 0:02:54.4]} 6... Nc6 {[%clk 0:02:42.8]} 7.
Bg3 {[%clk 0:02:53.7]} 7... O-O {[%clk 0:02:35.4]} 8. Nbd2 {[%clk 0:02:40.9]}
8... a6 {[%clk 0:02:29]} 9. Bd3 {[%clk 0:02:39.9]} 9... b5 {[%clk 0:02:27.9]}
10. Ne5 {[%clk 0:02:36.3]} 10... Bb7 {[%clk 0:02:26.1]} 11. f4 {[%clk
0:02:33.4]} 11... b4 {[%clk 0:02:22.5]} 12. O-O {[%clk 0:02:32.5]} 12... bxc3
{[%clk 0:02:14.5]} 13. bxc3 {[%clk 0:02:33.4]} 13... cxd4 {[%clk 0:02:14.1]} 14.
cxd4 {[%clk 0:02:34.2]} 14... Nb4 {[%clk 0:02:11.7]} 15. Bh4 {[%clk 0:02:11.4]}
15... Nxd3 {[%clk 0:02:06]} 16. Nxd3 {[%clk 0:02:11]} 16... Be7 {[%clk
0:02:05.8]} 17. Ne5 {[%clk 0:01:32.3]} 17... Ne4 {[%clk 0:01:58.2]} 18. Bxe7
{[%clk 0:01:31.7]} 18... Qxe7 {[%clk 0:01:58.6]} 19. Nb3 {[%clk 0:01:26.3]}
19... a5 {[%clk 0:01:52.8]} 20. Rc1 {[%clk 0:01:12.3]} 20... Qa3 {[%clk
0:01:45.5]} 21. Qc2 {[%clk 0:01:07.6]} 21... a4 {[%clk 0:01:40.9]} 22. Nc5
{[%clk 0:00:59.8]} 22... Qxe3+ {[%clk 0:01:38.3]} 23. Kh1 {[%clk 0:01:00.4]}
23... Ba6 {[%clk 0:01:28.8]} 24. Nxa6 {[%clk 0:00:52.6]} 24... Rxa6 {[%clk
0:01:25.5]} 25. Rcd1 {[%clk 0:00:53.1]} 25... Raa8 {[%clk 0:01:18.1]} 26. Rf3
{[%clk 0:00:47.3]} 26... Rfc8 {[%clk 0:00:51.8]} 27. Nc6 {[%clk 0:00:40.1]}
27... Nf2+ {[%clk 0:00:42.7]} 28. Rxf2 {[%clk 0:00:37.2]} 28... Qa3 {[%clk
0:00:16.5]} 29. Rf3 {[%clk 0:00:26.7]} 29... Qd6 {[%clk 0:00:16.1]} 30. Rc3
{[%clk 0:00:27.3]} 30... Rc7 {[%clk 0:00:12.2]} 31. Ne5 {[%clk 0:00:26.7]} 31...
Rac8 {[%clk 0:00:12.1]} 32. Rxc7 {[%clk 0:00:24.1]} 32... Rxc7 {[%clk
0:00:11.8]} 33. Qxa4 {[%clk 0:00:24.1]} 33... g6 {[%clk 0:00:12.2]} 34. h3
{[%clk 0:00:20.2]} 34... Kg7 {[%clk 0:00:12.1]} 35. Rb1 {[%clk 0:00:16.2]} 35...
f6 {[%clk 0:00:11.9]} 36. Nd3 {[%clk 0:00:13]} 36... Rc4 {[%clk 0:00:12.1]} 37.
Qa7+ {[%clk 0:00:12.7]} 37... Kh6 {[%clk 0:00:11.9]} 38. Rb7 {[%clk 0:00:10.1]}
38... g5 {[%clk 0:00:09.5]} 39. Rxh7+ {[%clk 0:00:06.9]} 39... Kg6 {[%clk
0:00:10.1]} 40. g4 {[%clk 0:00:06.5]} 40... Qf8 {[%clk 0:00:04.3]} 41. Qd7
{[%clk 0:00:04.2]} 41... gxf4 {[%clk 0:00:03.1]} 42. Nxf4+ {[%clk 0:00:05]}
42... Kg5 {[%clk 0:00:03.1]} 43. Nxe6+ {[%clk 0:00:05.7]} 1-0

[Event "Late-Titled-Tuesday-Blitz-March-05-2024"]
[Site "Chess.com"]
[Date "2024.03.05"]
[Round "5"]
[White "SchmakAttack"]
[Black "subham777"]
[Result "1/2-1/2"]
[WhiteElo "2812"]
[BlackElo "2602"]
[TimeControl "180+1"]
[EndTime "14:55:24 PST"]
[Termination "Game drawn by repetition"]

1. Nf3 {[%clk 0:03:00.9]} 1... d5 {[%clk 0:02:58.7]} 2. b3 {[%clk 0:03:00.9]}
2... Nf6 {[%clk 0:02:58.5]} 3. Bb2 {[%clk 0:03:01]} 3... e6 {[%clk 0:02:58.9]}
4. g3 {[%clk 0:03:00.4]} 4... Be7 {[%clk 0:02:59.5]} 5. Bg2 {[%clk 0:03:01]}
5... O-O {[%clk 0:03:00]} 6. O-O {[%clk 0:03:01.7]} 6... c5 {[%clk 0:02:58.3]}
7. d3 {[%clk 0:03:01]} 7... Nc6 {[%clk 0:02:55.9]} 8. Nbd2 {[%clk 0:02:58.8]}
8... Qc7 {[%clk 0:02:52.7]} 9. e4 {[%clk 0:02:57.8]} 9... dxe4 {[%clk
0:02:51.9]} 10. dxe4 {[%clk 0:02:53.8]} 10... e5 {[%clk 0:02:51.8]} 11. h3
{[%clk 0:02:53.9]} 11... Be6 {[%clk 0:02:50.2]} 12. Qe2 {[%clk 0:02:45.7]} 12...
Rfd8 {[%clk 0:02:41.8]} 13. Rfd1 {[%clk 0:02:20.3]} 13... a6 {[%clk 0:02:31.5]}
14. a4 {[%clk 0:02:11.5]} 14... Nd4 {[%clk 0:02:22.3]} 15. Nxd4 {[%clk 0:02:11]}
15... cxd4 {[%clk 0:02:19.2]} 16. Rac1 {[%clk 0:02:11.4]} 16... Bb4 {[%clk
0:02:12.8]} 17. Nf3 {[%clk 0:02:07.9]} 17... Bc3 {[%clk 0:01:56.9]} 18. Bxc3
{[%clk 0:02:00]} 18... dxc3 {[%clk 0:01:55]} 19. Nh4 {[%clk 0:01:42.4]} 19...
Qc5 {[%clk 0:01:45.9]} 20. Nf5 {[%clk 0:01:40.3]} 20... b5 {[%clk 0:01:37.4]}
21. axb5 {[%clk 0:01:38.6]} 21... axb5 {[%clk 0:01:37.2]} 22. Qe3 {[%clk
0:01:23.2]} 22... Qxe3 {[%clk 0:01:31]} 23. Nxe3 {[%clk 0:01:24.1]} 23... Kf8
{[%clk 0:01:14.4]} 24. f4 {[%clk 0:01:23.3]} 24... exf4 {[%clk 0:01:02.3]} 25.
gxf4 {[%clk 0:01:24.2]} 25... Rxd1+ {[%clk 0:00:43.4]} 26. Rxd1 {[%clk
0:01:25.1]} 26... Re8 {[%clk 0:00:22.4]} 27. Rd4 {[%clk 0:00:55.5]} 27... g6
{[%clk 0:00:16.6]} 28. Kf2 {[%clk 0:00:46.1]} 28... Nh5 {[%clk 0:00:15.1]} 29.
Kf3 {[%clk 0:00:41.5]} 29... Bc8 {[%clk 0:00:15.4]} 30. Bf1 {[%clk 0:00:40.1]}
30... Bb7 {[%clk 0:00:12.3]} 31. Bxb5 {[%clk 0:00:40]} 31... Rxe4 {[%clk
0:00:12.5]} 32. Rxe4 {[%clk 0:00:40.1]} 32... f5 {[%clk 0:00:13.1]} 33. b4
{[%clk 0:00:10.2]} 33... Bxe4+ {[%clk 0:00:12.4]} 34. Kf2 {[%clk 0:00:11]} 34...
Nxf4 {[%clk 0:00:12.9]} 35. Bf1 {[%clk 0:00:11.5]} 35... Nd5 {[%clk 0:00:10.7]}
36. Nxd5 {[%clk 0:00:11.7]} 36... Bxd5 {[%clk 0:00:11.6]} 37. Ke3 {[%clk
0:00:11.3]} 37... Be4 {[%clk 0:00:10.2]} 38. Bd3 {[%clk 0:00:09.9]} 38... Bxd3
{[%clk 0:00:07]} 39. Kxd3 {[%clk 0:00:10.8]} 39... Ke7 {[%clk 0:00:06.8]} 40.
Kxc3 {[%clk 0:00:11.1]} 40... Kd6 {[%clk 0:00:07.2]} 41. Kd4 {[%clk 0:00:11.9]}
41... g5 {[%clk 0:00:05.7]} 42. c4 {[%clk 0:00:12.2]} 42... f4 {[%clk
0:00:05.2]} 43. c5+ {[%clk 0:00:12.6]} 43... Kc6 {[%clk 0:00:05.6]} 44. Kc4
{[%clk 0:00:13.3]} 44... h5 {[%clk 0:00:04.9]} 45. b5+ {[%clk 0:00:14]} 45...
Kb7 {[%clk 0:00:05]} 46. c6+ {[%clk 0:00:12.2]} 46... Kb6 {[%clk 0:00:04.5]} 47.
Kd4 {[%clk 0:00:12]} 47... g4 {[%clk 0:00:03.4]} 48. hxg4 {[%clk 0:00:12.5]}
48... hxg4 {[%clk 0:00:04.3]} 49. Ke4 {[%clk 0:00:12.2]} 49... f3 {[%clk
0:00:03.4]} 50. Ke3 {[%clk 0:00:12.7]} 50... Kc7 {[%clk 0:00:03.6]} 51. Kf2
{[%clk 0:00:13.1]} 51... Kb6 {[%clk 0:00:04.1]} 52. Kg3 {[%clk 0:00:13.7]} 52...
Kc7 {[%clk 0:00:04.5]} 53. Kf2 {[%clk 0:00:14.2]} 53... Kd6 {[%clk 0:00:05]} 54.
Kg3 {[%clk 0:00:14.3]} 54... Kc7 {[%clk 0:00:05.5]} 55. Kf2 {[%clk 0:00:14.8]}
1/2-1/2

[Event "Late-Titled-Tuesday-Blitz-March-05-2024"]
[Site "Chess.com"]
[Date "2024.03.05"]
[Round "5"]
[White "jcibarra"]
[Black "Hamisandwich"]
[Result "1/2-1/2"]
[WhiteElo "2928"]
[BlackElo "2669"]
[TimeControl "180+1"]
[EndTime "14:55:25 PST"]
[Termination "Game drawn by repetition"]

1. e4 {[%clk 0:02:59.8]} 1... c6 {[%clk 0:02:58.6]} 2. Nf3 {[%clk 0:02:59.5]}
2... d5 {[%clk 0:02:57.1]} 3. d3 {[%clk 0:03:00.1]} 3... a6 {[%clk 0:02:49.3]}
4. Qe2 {[%clk 0:02:54]} 4... g6 {[%clk 0:02:39.3]} 5. g3 {[%clk 0:02:53.4]} 5...
Bg7 {[%clk 0:02:39.2]} 6. Bg2 {[%clk 0:02:53.9]} 6... Nd7 {[%clk 0:02:34.9]} 7.
e5 {[%clk 0:02:47.7]} 7... Nc5 {[%clk 0:02:31.9]} 8. O-O {[%clk 0:02:45.5]} 8...
h5 {[%clk 0:02:22.3]} 9. d4 {[%clk 0:02:36.4]} 9... Ne6 {[%clk 0:02:12.9]} 10.
c4 {[%clk 0:02:28.9]} 10... dxc4 {[%clk 0:02:07.7]} 11. Qxc4 {[%clk 0:02:28.7]}
11... Nh6 {[%clk 0:02:01.1]} 12. Nc3 {[%clk 0:02:27.3]} 12... Nc7 {[%clk
0:01:57.1]} 13. Ng5 {[%clk 0:02:22.8]} 13... O-O {[%clk 0:01:45.6]} 14. Rd1
{[%clk 0:02:21.8]} 14... Be6 {[%clk 0:01:28.5]} 15. Nxe6 {[%clk 0:02:18.2]}
15... fxe6 {[%clk 0:01:29.4]} 16. Ne4 {[%clk 0:02:14]} 16... Nf5 {[%clk
0:01:24.2]} 17. Nc5 {[%clk 0:02:04.8]} 17... Qc8 {[%clk 0:01:21]} 18. Qb3 {[%clk
0:01:58.8]} 18... Rb8 {[%clk 0:01:19]} 19. Bg5 {[%clk 0:01:31.5]} 19... Bh6
{[%clk 0:01:11]} 20. Bxh6 {[%clk 0:01:21.7]} 20... Nxh6 {[%clk 0:01:11.9]} 21.
Rac1 {[%clk 0:01:12.6]} 21... Nd5 {[%clk 0:00:56.9]} 22. Ne4 {[%clk 0:00:56.7]}
22... Nf5 {[%clk 0:00:46.6]} 23. Ng5 {[%clk 0:00:55.4]} 23... Qd7 {[%clk
0:00:43.4]} 24. Be4 {[%clk 0:00:53.6]} 24... Kg7 {[%clk 0:00:38.9]} 25. Rd3
{[%clk 0:00:52.1]} 25... Rbd8 {[%clk 0:00:33.5]} 26. Rcd1 {[%clk 0:00:51.8]}
26... Rb8 {[%clk 0:00:29.3]} 27. Rf3 {[%clk 0:00:47.3]} 27... Rbd8 {[%clk
0:00:28.3]} 28. a3 {[%clk 0:00:41.8]} 28... Kh6 {[%clk 0:00:24.6]} 29. h4 {[%clk
0:00:38.9]} 29... Kg7 {[%clk 0:00:24.4]} 30. Kg2 {[%clk 0:00:38.4]} 30... Rb8
{[%clk 0:00:21.6]} 31. Qd3 {[%clk 0:00:38.5]} 31... Nc7 {[%clk 0:00:17.9]} 32.
a4 {[%clk 0:00:35.6]} 32... Rbd8 {[%clk 0:00:17.2]} 33. Qc4 {[%clk 0:00:35.1]}
33... Nd5 {[%clk 0:00:16.7]} 34. Rb3 {[%clk 0:00:34.2]} 34... Rb8 {[%clk
0:00:16.9]} 35. Bb1 {[%clk 0:00:34]} 35... Nc7 {[%clk 0:00:16.1]} 36. Be4 {[%clk
0:00:31.8]} 36... Nd5 {[%clk 0:00:16.3]} 37. a5 {[%clk 0:00:31.8]} 37... Rbd8
{[%clk 0:00:15.2]} 38. Qc5 {[%clk 0:00:32]} 38... Rb8 {[%clk 0:00:15.2]} 39. Rf3
{[%clk 0:00:31.4]} 39... Rbd8 {[%clk 0:00:14.5]} 40. Rb3 {[%clk 0:00:31.1]}
40... Rb8 {[%clk 0:00:14.6]} 41. Nh3 {[%clk 0:00:31.8]} 41... Rbd8 {[%clk
0:00:12.2]} 42. Rbd3 {[%clk 0:00:31.2]} 42... Rb8 {[%clk 0:00:12.3]} 43. Bxd5
{[%clk 0:00:27.5]} 43... exd5 {[%clk 0:00:11.8]} 44. Ng5 {[%clk 0:00:18.1]}
44... e6 {[%clk 0:00:12]} 45. Rb3 {[%clk 0:00:18.7]} 45... Rfe8 {[%clk
0:00:11.4]} 46. Rdd3 {[%clk 0:00:18.1]} 46... Qe7 {[%clk 0:00:10.3]} 47. Qb6
{[%clk 0:00:17.2]} 47... Qd7 {[%clk 0:00:09.2]} 48. Rf3 {[%clk 0:00:16.7]} 48...
Rf8 {[%clk 0:00:09.2]} 49. Rf4 {[%clk 0:00:17.2]} 49... Rfe8 {[%clk 0:00:09.4]}
50. Rd3 {[%clk 0:00:16.6]} 50... Rf8 {[%clk 0:00:09.6]} 51. Rb3 {[%clk
0:00:13.9]} 51... Rfe8 {[%clk 0:00:09.1]} 52. Qc5 {[%clk 0:00:14.5]} 52... Qe7
{[%clk 0:00:08.7]} 53. Qb6 {[%clk 0:00:11.3]} 53... Qd7 {[%clk 0:00:08.8]}
1/2-1/2

[Event "Late-Titled-Tuesday-Blitz-March-05-2024"]
[Site "Chess.com"]
[Date "2024.03.05"]
[Round "5"]
[White "IMRosen"]
[Black "Genghis_K"]
[Result "0-1"]
[WhiteElo "2670"]
[BlackElo "2936"]
[TimeControl "180+1"]
[EndTime "14:55:27 PST"]
[Termination "Genghis_K won by resignation"]

1. d4 {[%clk 0:03:00.9]} 1... Nf6 {[%clk 0:02:48.6]} 2. Bf4 {[%clk 0:03:00.7]}
2... d5 {[%clk 0:02:45.3]} 3. e3 {[%clk 0:03:01.2]} 3... c5 {[%clk 0:02:45.4]}
4. Nf3 {[%clk 0:03:01.7]} 4... e6 {[%clk 0:02:45.3]} 5. Nbd2 {[%clk 0:03:00.4]}
5... Qb6 {[%clk 0:02:42.6]} 6. Rb1 {[%clk 0:02:48.8]} 6... Bd7 {[%clk 0:02:39]}
7. c3 {[%clk 0:02:34.2]} 7... cxd4 {[%clk 0:02:37.5]} 8. exd4 {[%clk 0:02:34]}
8... Bb5 {[%clk 0:02:37.5]} 9. Ne5 {[%clk 0:02:28.8]} 9... Nbd7 {[%clk
0:02:31.3]} 10. Qb3 {[%clk 0:02:24.2]} 10... Bxf1 {[%clk 0:02:25.8]} 11. Nxf1
{[%clk 0:02:24.1]} 11... Qa6 {[%clk 0:02:11.7]} 12. Ng3 {[%clk 0:02:16.5]} 12...
Be7 {[%clk 0:02:08.6]} 13. Rd1 {[%clk 0:02:13]} 13... h5 {[%clk 0:02:04]} 14.
Ne2 {[%clk 0:02:03]} 14... h4 {[%clk 0:01:59.8]} 15. h3 {[%clk 0:02:02.9]} 15...
Nxe5 {[%clk 0:01:51.2]} 16. Bxe5 {[%clk 0:02:01.6]} 16... Ne4 {[%clk 0:01:47.8]}
17. Nc1 {[%clk 0:01:54.4]} 17... f6 {[%clk 0:01:39.3]} 18. Bh2 {[%clk
0:01:54.5]} 18... Kf7 {[%clk 0:01:37]} 19. Nd3 {[%clk 0:01:54.9]} 19... Rhc8
{[%clk 0:01:37.3]} 20. O-O {[%clk 0:01:54.8]} 20... b6 {[%clk 0:01:32.4]} 21.
Rfe1 {[%clk 0:01:54.6]} 21... Qc4 {[%clk 0:01:31.2]} 22. f3 {[%clk 0:01:41.4]}
22... Ng3 {[%clk 0:01:25.5]} 23. Nf4 {[%clk 0:01:13.9]} 23... Bd6 {[%clk
0:01:11.1]} 24. Bxg3 {[%clk 0:00:26.5]} 24... hxg3 {[%clk 0:01:06]} 25. Ne2
{[%clk 0:00:26.9]} 25... Qxb3 {[%clk 0:00:59.1]} 26. axb3 {[%clk 0:00:27.8]}
26... g5 {[%clk 0:00:54.2]} 27. Rf1 {[%clk 0:00:22.5]} 27... a5 {[%clk
0:00:50.3]} 28. f4 {[%clk 0:00:17.8]} 28... gxf4 {[%clk 0:00:46.5]} 29. Nxf4
{[%clk 0:00:18.7]} 29... a4 {[%clk 0:00:47.4]} 30. bxa4 {[%clk 0:00:15.5]} 30...
Rxa4 {[%clk 0:00:48.3]} 31. Nd3 {[%clk 0:00:16.1]} 31... Kg6 {[%clk 0:00:42]}
32. Rf3 {[%clk 0:00:15.9]} 32... Rca8 {[%clk 0:00:38.6]} 33. Kf1 {[%clk
0:00:09.2]} 33... Ra1 {[%clk 0:00:38.1]} 34. Re1 {[%clk 0:00:08.7]} 34... Rxe1+
{[%clk 0:00:37.5]} 35. Kxe1 {[%clk 0:00:06.4]} 35... Ra1+ {[%clk 0:00:37.7]} 36.
Ke2 {[%clk 0:00:07]} 36... e5 {[%clk 0:00:21.6]} 37. Rxg3+ {[%clk 0:00:06.2]}
37... Kf5 {[%clk 0:00:22.3]} 38. dxe5 {[%clk 0:00:05.6]} 38... fxe5 {[%clk
0:00:23.2]} 39. Rf3+ {[%clk 0:00:04.7]} 39... Ke6 {[%clk 0:00:23.7]} 40. Re3
{[%clk 0:00:02.9]} 40... e4 {[%clk 0:00:23.2]} 41. Ne1 {[%clk 0:00:01.8]} 41...
Ra2 {[%clk 0:00:22.7]} 42. Nc2 {[%clk 0:00:01.7]} 42... Rxb2 {[%clk 0:00:23]}
43. Kd1 {[%clk 0:00:02.4]} 43... Bf4 {[%clk 0:00:22.4]} 44. Re1 {[%clk 0:00:02]}
44... Ke5 {[%clk 0:00:19.3]} 45. Nd4 {[%clk 0:00:02.4]} 45... Rd2+ {[%clk
0:00:19.3]} 46. Kc1 {[%clk 0:00:02.2]} 46... Rxd4+ {[%clk 0:00:20.1]} 47. Kb1
{[%clk 0:00:01.9]} 47... Rd2 {[%clk 0:00:19.9]} 48. g4 {[%clk 0:00:01.9]} 48...
Bg3 {[%clk 0:00:19.3]} 49. Rg1 {[%clk 0:00:01.7]} 49... Bf2 {[%clk 0:00:17.8]}
50. Rf1 {[%clk 0:00:01.4]} 50... e3 {[%clk 0:00:18.3]} 51. g5 {[%clk 0:00:01.2]}
51... e2 {[%clk 0:00:18.3]} 52. Rc1 {[%clk 0:00:01.8]} 52... e1=Q {[%clk
0:00:18.3]} 53. Rxe1+ {[%clk 0:00:02]} 53... Bxe1 {[%clk 0:00:19.2]} 54. g6
{[%clk 0:00:02.1]} 54... Rg2 {[%clk 0:00:19.9]} 55. g7 {[%clk 0:00:02.2]} 55...
Rxg7 {[%clk 0:00:19.6]} 0-1

[Event "Late-Titled-Tuesday-Blitz-March-05-2024"]
[Site "Chess.com"]
[Date "2024.03.05"]
[Round "5"]
[White "shirovin"]
[Black "Walter_White_Poland"]
[Result "1-0"]
[WhiteElo "2076"]
[BlackElo "2354"]
[TimeControl "180+1"]
[EndTime "14:55:31 PST"]
[Termination "shirovin won on time"]

1. e4 {[%clk 0:03:00.9]} 1... e5 {[%clk 0:02:47.2]} 2. Nf3 {[%clk 0:02:59.7]}
2... Nc6 {[%clk 0:02:46.4]} 3. Bc4 {[%clk 0:03:00.3]} 3... Nf6 {[%clk
0:02:45.4]} 4. d3 {[%clk 0:02:59.9]} 4... d5 {[%clk 0:02:45.5]} 5. exd5 {[%clk
0:02:57.6]} 5... Nxd5 {[%clk 0:02:45.7]} 6. h3 {[%clk 0:02:44]} 6... Bf5 {[%clk
0:02:27.5]} 7. O-O {[%clk 0:02:42]} 7... Qd7 {[%clk 0:02:22.2]} 8. Re1 {[%clk
0:02:38.4]} 8... f6 {[%clk 0:02:22.2]} 9. Nc3 {[%clk 0:02:18.6]} 9... Nb6 {[%clk
0:01:21.7]} 10. Bb3 {[%clk 0:02:05.8]} 10... O-O-O {[%clk 0:01:18.1]} 11. Be3
{[%clk 0:01:55.9]} 11... Kb8 {[%clk 0:00:57.9]} 12. a4 {[%clk 0:01:51.4]} 12...
a5 {[%clk 0:00:15.9]} 13. Bxb6 {[%clk 0:01:43.2]} 13... cxb6 {[%clk 0:00:16.8]}
14. Ne4 {[%clk 0:01:24.2]} 14... Bc5 {[%clk 0:00:15.5]} 15. Nxc5 {[%clk
0:01:22.7]} 15... bxc5 {[%clk 0:00:15.1]} 16. Bc4 {[%clk 0:01:18.7]} 16... Nd4
{[%clk 0:00:14.1]} 17. Nxd4 {[%clk 0:01:17.9]} 17... cxd4 {[%clk 0:00:14.2]} 18.
Qd2 {[%clk 0:01:17.4]} 18... Qc7 {[%clk 0:00:13.4]} 19. b4 {[%clk 0:01:07.6]}
19... axb4 {[%clk 0:00:12.9]} 20. Qxb4 {[%clk 0:01:07]} 20... Rd6 {[%clk
0:00:13.4]} 21. a5 {[%clk 0:00:57.4]} 21... Ka7 {[%clk 0:00:13.1]} 22. Reb1
{[%clk 0:00:52.1]} 22... Rc8 {[%clk 0:00:03.3]} 23. a6 {[%clk 0:00:36.9]} 23...
b6 {[%clk 0:00:02.4]} 24. f3 {[%clk 0:00:27.7]} 24... Be6 {[%clk 0:00:02.4]} 25.
Bxe6 {[%clk 0:00:20.3]} 25... Rxe6 {[%clk 0:00:03.3]} 26. Rb2 {[%clk 0:00:20.2]}
26... Rc6 {[%clk 0:00:03.8]} 27. Raa2 {[%clk 0:00:18.7]} 27... Rb8 {[%clk
0:00:04.2]} 28. Kh2 {[%clk 0:00:16.5]} 28... Rc8 {[%clk 0:00:04.7]} 29. Kg1
{[%clk 0:00:16.1]} 29... Rb8 {[%clk 0:00:04.5]} 30. Kf2 {[%clk 0:00:15.6]} 30...
h6 {[%clk 0:00:04.8]} 31. Ke2 {[%clk 0:00:14]} 31... Rc5 {[%clk 0:00:05.2]} 32.
Kd2 {[%clk 0:00:14.2]} 32... Qc6 {[%clk 0:00:05.1]} 33. Ra3 {[%clk 0:00:11.5]}
33... Rc8 {[%clk 0:00:05]} 34. Raa2 {[%clk 0:00:11]} 34... Rb8 {[%clk
0:00:04.8]} 35. Qb3 {[%clk 0:00:11.2]} 35... Rc8 {[%clk 0:00:04.5]} 36. Qf7+
{[%clk 0:00:10.3]} 36... Rc7 {[%clk 0:00:04.8]} 37. Qb3 {[%clk 0:00:10]} 37...
Rc8 {[%clk 0:00:04.8]} 38. Qf7+ {[%clk 0:00:08]} 38... Rc7 {[%clk 0:00:04.9]}
39. Qg6 {[%clk 0:00:07.6]} 39... Rc3 {[%clk 0:00:04.1]} 40. Qe4 {[%clk 0:00:07]}
40... Qxe4 {[%clk 0:00:03.2]} 41. fxe4 {[%clk 0:00:07.1]} 41... R7c5 {[%clk
0:00:03.3]} 42. Ra1 {[%clk 0:00:06.1]} 42... Ra5 {[%clk 0:00:03.1]} 43. Rab1
{[%clk 0:00:05.7]} 43... Rxa6 {[%clk 0:00:02.5]} 44. Rb5 {[%clk 0:00:05]} 44...
Kb7 {[%clk 0:00:02.2]} 45. Rd5 {[%clk 0:00:05.4]} 45... Kc6 {[%clk 0:00:02.5]}
46. Rd8 {[%clk 0:00:04.2]} 46... Ra2 {[%clk 0:00:02.2]} 47. Re8 {[%clk
0:00:02.1]} 47... Rcxc2+ {[%clk 0:00:01.4]} 48. Kd1 {[%clk 0:00:02.2]} 1-0